bitfinex/quotes_BTCUSD_20240810
["timestamp","ask_amount","ask_price","bid_price","bid_amount"]
[1723315349978,0.08282,61201.0,61200.0,0.95820853]
[1723315353956,0.08282,61201.0,61200.0,0.95085853]
[1723315356772,0.08282,61201.0,61200.0,0.815141]
[1723315357092,0.08282,61201.0,61200.0,0.95085275]
[1723315362452,0.08282,61201.0,61200.0,0.87065275]
[1723315362662,0.08282,61201.0,61200.0,0.95085275]
[1723315362857,0.08282,61201.0,61200.0,0.87065275]
[1723315363060,0.08282,61201.0,61200.0,0.95085275]
[1723315366858,0.00832,61201.0,61200.0,0.95085275]
[1723315367234,0.00832,61201.0,61200.0,0.815141]
[1723315367563,0.00832,61201.0,61200.0,0.9508527]
[1723315367771,0.00832,61201.0,61200.0,0.815141]
[1723315368063,0.00832,61201.0,61200.0,0.9508527]
[1723315371798,0.00832,61201.0,61200.0,0.9468527]
[1723315372114,0.00832,61201.0,61200.0,0.9508527]
[1723315373339,0.00832,61201.0,61200.0,0.9468527]
[1723315373657,0.00832,61201.0,61200.0,0.9508527]
[1723315374321,0.00832,61201.0,61200.0,0.815141]
[1723315374527,0.00832,61201.0,61200.0,0.95085086]
[1723315377125,0.00832,61201.0,61200.0,0.95176496]
[1723315377888,0.00832,61201.0,61200.0,0.95176478]
[1723315378469,0.00832,61201.0,61200.0,0.95176532]
[1723315378665,0.00832,61201.0,61200.0,0.8160551]
[1723315378843,0.00832,61201.0,61200.0,0.95176496]
[1723315380867,0.00832,61201.0,61200.0,0.8160551]
[1723315381063,0.00832,61201.0,61200.0,0.95176496]
[1723315382682,0.00832,61201.0,61200.0,1.03586496]
[1723315383013,0.00832,61201.0,61200.0,1.03386496]
[1723315383788,0.00832,61201.0,61200.0,1.36107788]
[1723315383969,0.0001,61209.0,61208.0,0.815396]
[1723315384145,0.0001,61209.0,61208.0,0.968696]
[1723315384379,0.0001,61209.0,61208.0,1.10438553]
[1723315385604,0.0001,61209.0,61208.0,1.11538553]
[1723315385832,0.0001,61209.0,61208.0,1.10438553]
[1723315386102,0.4713,61212.0,61211.0,0.73516]
[1723315386103,0.4664,61212.0,61211.0,0.73516]
[1723315386306,0.4664,61212.0,61211.0,0.95104953]
[1723315387451,0.4664,61212.0,61211.0,0.95104525]
[1723315387930,0.4664,61212.0,61211.0,0.95904525]
[1723315388176,0.4664,61212.0,61211.0,0.96604525]
[1723315389088,0.0719,61216.0,61211.0,0.96604525]
[1723315389089,0.0719,61216.0,61214.0,0.571763]
[1723315389266,0.0719,61216.0,61214.0,0.78764613]
[1723315390254,0.0719,61216.0,61214.0,0.79264613]
[1723315390459,0.0719,61218.0,61214.0,1.04010713]
[1723315391756,0.0719,61218.0,61214.0,1.04410713]
[1723315391977,0.08184646,61221.0,61214.0,1.04410713]
[1723315391978,0.15274646,61221.0,61214.0,1.04410713]
[1723315394353,0.15274646,61221.0,61214.0,0.908424]
[1723315394499,0.15274646,61221.0,61214.0,1.04409941]
[1723315396426,0.15274646,61221.0,61214.0,1.03909941]
[1723315396779,0.15274646,61221.0,61214.0,1.04309941]
[1723315397200,0.15274646,61221.0,61214.0,1.03909941]
[1723315397380,0.15274646,61221.0,61214.0,1.03509941]
[1723315397927,0.08184646,61221.0,61214.0,1.03809794]
[1723315398129,0.08184646,61221.0,61214.0,1.04209794]
[1723315398349,0.08184646,61221.0,61214.0,0.906424]
[1723315398512,0.08184646,61221.0,61214.0,1.04209611]
[1723315399650,0.00688771,61215.0,61214.0,1.04209611]
[1723315400785,0.00688771,61215.0,61214.0,1.20545711]
[1723315401500,0.00771871,61215.0,61214.0,1.20545711]
[1723315404992,0.00771871,61215.0,61214.0,1.20545334]
[1723315407677,0.00831,61225.0,61224.0,0.824103]
[1723315407852,0.00831,61225.0,61224.0,1.44642026]
[1723315408012,0.00831,61225.0,61224.0,1.72647922]
[1723315408217,0.00831,61225.0,61224.0,1.83325677]
[1723315408618,0.00831,61225.0,61224.0,1.81325677]
[1723315408813,0.00831,61225.0,61224.0,1.31275192]
[1723315409024,0.00831,61225.0,61224.0,1.84136802]
[1723315409220,0.00831,61225.0,61224.0,1.67183539]
[1723315409511,0.00831,61225.0,61224.0,1.48750139]
[1723315409657,0.00831,61225.0,61224.0,1.40730139]
[1723315409867,0.00831,61225.0,61224.0,1.49150139]
[1723315410070,0.00831,61225.0,61224.0,1.28805131]
[1723315410273,0.00831,61225.0,61224.0,1.27406175]
[1723315410636,0.00831,61225.0,61224.0,1.21776175]
[1723315410863,0.00831,61225.0,61224.0,1.23176175]
[1723315411351,0.00831,61225.0,61224.0,1.21776175]
[1723315411771,0.00831,61225.0,61224.0,1.21776146]
[1723315412211,0.00831,61225.0,61224.0,1.23176146]
[1723315412451,0.00831,61225.0,61224.0,1.09611792]
[1723315412662,0.00831,61225.0,61224.0,1.23176146]
[1723315413844,0.00831,61225.0,61224.0,1.30606146]
[1723315414554,0.00831,61225.0,61224.0,1.36260044]
[1723315414978,0.00831,61225.0,61224.0,1.30606146]
[1723315415155,0.00831,61225.0,61224.0,1.36260044]
[1723315415358,0.00831,61225.0,61224.0,1.30605766]
[1723315415516,0.00831,61231.0,61224.0,1.30605766]
[1723315415517,0.00831,61231.0,61230.0,0.111659]
[1723315415716,0.00831,61231.0,61230.0,1.07594099]
[1723315415923,0.00831,61231.0,61230.0,1.40257699]
[1723315417170,0.00831,61231.0,61230.0,1.41657699]
[1723315417375,0.00831,61231.0,61230.0,0.97566766]
[1723315417596,0.00831,61231.0,61230.0,1.06986766]
[1723315417948,0.00831,61231.0,61230.0,1.05586766]
[1723315418230,0.00831,61231.0,61230.0,1.06986766]
[1723315418401,0.00831,61231.0,61230.0,1.04180925]
[1723315418792,0.00831,61231.0,61230.0,1.06980643]
[1723315419232,0.00831,61231.0,61230.0,1.05580643]
[1723315419431,0.00831,61231.0,61230.0,1.05580642]
[1723315419635,0.00831,61231.0,61230.0,1.06980642]
[1723315420046,0.00831,61231.0,61230.0,1.05580642]
[1723315420249,0.00831,61231.0,61230.0,1.06280642]
[1723315420606,0.00831,61231.0,61230.0,1.05580642]
[1723315420805,0.00831,61231.0,61230.0,1.06980642]
[1723315421508,0.00832,61246.0,61235.0,0.1549]
[1723315421739,0.00832,61246.0,61245.0,0.816573]
[1723315421997,0.00832,61246.0,61245.0,1.26930283]
[1723315422158,0.00832,61246.0,61245.0,1.04172483]
[1723315423270,0.00832,61246.0,61245.0,1.05472483]
[1723315423763,0.00832,61246.0,61245.0,1.04172483]
[1723315423986,0.00832,61246.0,61245.0,0.80030991]
[1723315424564,0.00832,61246.0,61245.0,0.81430991]
[1723315424765,0.00836,61246.0,61245.0,0.81430991]
[1723315425288,0.00836,61246.0,61245.0,0.515395]
[1723315425676,0.00836,61246.0,61245.0,0.678673]
[1723315426045,0.00836,61246.0,61245.0,0.515395]
[1723315426362,0.00836,61246.0,61245.0,0.513395]
[1723315427299,0.15226,61246.0,61245.0,0.269917]
[1723315427503,0.15226,61246.0,61245.0,0.350117]
[1723315427732,0.15226,61246.0,61245.0,0.027]
[1723315428302,0.15226,61246.0,61245.0,0.1072]
[1723315429059,0.15226,61246.0,61245.0,0.188839]
[1723315429289,0.15226,61246.0,61245.0,0.0932]
[1723315429403,0.15226,61246.0,61245.0,0.0802]
[1723315429940,0.15226,61246.0,61245.0,0.001]
[1723315431074,0.09136,61246.0,61242.0,0.0802]
[1723315431246,0.09136,61246.0,61224.0,0.12077068]
[1723315431247,0.0817,61242.0,61239.0,0.0802]
[1723315431448,0.0663,61241.0,61236.0,0.243501]
[1723315431633,0.0663,61241.0,61238.0,0.081648]
[1723315431834,0.0663,61241.0,61236.0,0.16185]
[1723315432095,0.0663,61241.0,61237.0,0.081649]
[1723315433086,0.0663,61241.0,61233.0,0.0802]
[1723315433282,0.0663,61237.0,61233.0,0.0802]
[1723315433679,0.0663,61237.0,61234.0,0.081653]
[1723315434664,0.0817,61236.0,61234.0,0.081653]
[1723315435093,0.0817,61236.0,61233.0,0.081654]
[1723315435298,0.0817,61236.0,61229.0,0.163319]
[1723315435299,0.0817,61236.0,61234.0,0.004]
[1723315435694,0.0663,61233.0,61227.0,0.163325]
[1723315435896,0.0663,61233.0,61229.0,0.08166]
[1723315436103,0.0663,61233.0,61227.0,0.163325]
[1723315436104,0.0663,61233.0,61227.0,0.081662]
[1723315436323,0.0663,61233.0,61228.0,0.081661]
[1723315436501,0.0663,61233.0,61226.0,0.163327]
[1723315436502,0.0663,61233.0,61229.0,0.08166]
[1723315437812,0.148956,61233.0,61226.0,0.081664]
[1723315438160,0.0663,61232.0,61228.0,0.081661]
[1723315438333,0.0663,61232.0,61223.0,0.163336]
[1723315438655,0.0663,61232.0,61228.0,0.081661]
[1723315439050,0.0663,61232.0,61229.0,0.0009141]
[1723315439276,0.0673,61232.0,61229.0,0.0009141]
[1723315439620,0.0683,61232.0,61229.0,0.0009141]
[1723315439820,0.0673,61232.0,61229.0,0.0009141]
[1723315440022,0.0673,61232.0,61229.0,0.0825731]
[1723315440223,0.0683,61232.0,61229.0,0.0825731]
[1723315440432,0.0817,61231.0,61229.0,0.0009141]
[1723315440664,0.147959,61230.0,61229.0,0.0009141]
[1723315441566,0.0663,61230.0,61229.0,0.0009141]
[1723315443171,0.313277,61230.0,61229.0,0.0009141]
[1723315443356,0.149959,61230.0,61229.0,0.0009141]
[1723315443758,0.231659,61230.0,61229.0,0.0019141]
[1723315443959,0.394977,61230.0,61229.0,0.0019141]
[1723315444174,0.494977,61230.0,61229.0,0.0009141]
[1723315444374,0.65879192,61230.0,61229.0,0.0009141]
[1723315444573,0.68279192,61230.0,61229.0,0.0009141]
[1723315444999,0.84510992,61230.0,61229.0,0.0009141]
[1723315445436,0.84610992,61230.0,61229.0,0.0009141]
[1723315445650,0.84410992,61230.0,61229.0,0.0009141]
[1723315445836,0.84510992,61230.0,61229.0,0.0009141]
[1723315446779,0.68179192,61230.0,61229.0,0.0009141]
[1723315449143,0.84510992,61230.0,61229.0,0.0009141]
[1723315454666,0.85510992,61230.0,61229.0,0.0009141]
[1723315455629,0.9720142,61230.0,61229.0,0.0009141]
[1723315456052,0.93520992,61230.0,61229.0,0.0019141]
[1723315456253,0.93420992,61230.0,61229.0,0.0009141]
[1723315456381,0.93420992,61230.0,61229.0,0.0019141]
[1723315456382,0.92520992,61230.0,61229.0,0.0019141]
[1723315456585,0.85510992,61230.0,61229.0,0.0019141]
[1723315456840,0.84510992,61230.0,61229.0,0.0019141]
[1723315457051,0.84410992,61230.0,61229.0,0.0019141]
[1723315457254,0.84810992,61230.0,61229.0,0.0029141]
[1723315457828,0.85410992,61230.0,61229.0,0.0019141]
[1723315458028,0.85110992,61230.0,61229.0,0.0029141]
[1723315459499,1.02487811,61230.0,61229.0,0.0029141]
[1723315459702,0.86156011,61230.0,61229.0,0.0029141]
[1723315460442,0.87155185,61230.0,61229.0,0.0029141]
[1723315460641,1.02486812,61230.0,61229.0,0.0029141]
[1723315460867,1.43545612,61230.0,61229.0,0.0029141]
[1723315461248,1.42545612,61230.0,61229.0,0.0029141]
[1723315461448,1.42546006,61230.0,61229.0,0.0029141]
[1723315461668,1.43546006,61230.0,61229.0,0.0029141]
[1723315461991,2.12695371,61230.0,61229.0,0.0029141]
[1723315462344,2.06546006,61230.0,61229.0,0.0029141]
[1723315462769,2.24877806,61230.0,61229.0,0.0029141]
[1723315463297,2.22377406,61230.0,61229.0,0.0029141]
[1723315463504,2.10780906,61230.0,61229.0,0.0029141]
[1723315463884,2.08355906,61230.0,61229.0,0.0029141]
[1723315464274,2.10355906,61230.0,61229.0,0.0029141]
[1723315464480,2.24770876,61230.0,61229.0,0.0029141]
[1723315464651,2.10355906,61230.0,61229.0,0.0029141]
[1723315465224,2.09905097,61230.0,61229.0,0.0029141]
[1723315465403,2.07905097,61230.0,61229.0,0.0029141]
[1723315465808,1.91573297,61230.0,61229.0,0.0029141]
[1723315466020,1.91572711,61230.0,61229.0,0.0029141]
[1723315466540,2.07904511,61230.0,61229.0,0.0029141]
[1723315466769,2.05082574,61230.0,61229.0,0.0029141]
[1723315466963,1.90528692,61230.0,61229.0,0.0029141]
[1723315467554,2.06860492,61230.0,61229.0,0.0029141]
[1723315467844,1.79652692,61230.0,61229.0,0.0029141]
[1723315468049,2.04994492,61230.0,61229.0,0.0029141]
[1723315468203,0.0634,61217.0,61215.0,0.0009152]
[1723315468406,0.26849192,61216.0,61215.0,0.0009152]
[1723315468628,0.18681492,61216.0,61215.0,0.0009152]
[1723315469593,0.19081492,61216.0,61215.0,0.0009152]
[1723315470113,0.27249192,61216.0,61215.0,0.0009152]
[1723315470745,0.35681396,61216.0,61215.0,0.0009152]
[1723315470945,0.36081396,61216.0,61215.0,0.0009152]
[1723315471145,0.28371396,61216.0,61215.0,0.0009152]
[1723315471348,0.29337222,61216.0,61215.0,0.0009152]
[1723315472326,0.45672722,61216.0,61215.0,0.0009152]
[1723315472553,0.29337222,61216.0,61215.0,0.0009152]
[1723315474131,0.45672722,61216.0,61215.0,0.0009152]
[1723315475754,0.62008222,61216.0,61215.0,0.0009152]
[1723315475946,0.44950518,61216.0,61215.0,0.0009152]
[1723315476185,0.45673299,61216.0,61215.0,0.0009152]
[1723315477256,0.44950518,61216.0,61215.0,0.0009152]
[1723315477869,0.28615018,61216.0,61215.0,0.1391152]
[1723315478613,0.29338915,61216.0,61215.0,0.1391152]
[1723315478730,0.45674415,61216.0,61215.0,0.0764152]
[1723315479179,0.28615018,61216.0,61215.0,0.0764152]
[1723315479380,0.20447318,61216.0,61215.0,0.0764152]
[1723315479578,0.008,61216.0,61215.0,0.1391152]
[1723315480379,0.004,61216.0,61215.0,0.1391152]
[1723315480795,0.081673,61220.0,61216.0,0.0755]
[1723315481003,0.24548792,61220.0,61218.0,0.0755]
[1723315481326,0.1,61219.0,61218.0,0.0755]
[1723315482361,0.1,61219.0,61218.0,0.0765]
[1723315482567,0.1,61219.0,61218.0,0.0755]
[1723315482749,0.1,61219.0,61218.0,0.0765]
[1723315482750,0.105,61219.0,61218.0,0.0765]
[1723315482922,0.11,61219.0,61218.0,0.0775]
[1723315483166,0.105,61219.0,61218.0,0.0765]
[1723315483686,0.11,61219.0,61218.0,0.0775]
[1723315485454,0.01,61219.0,61218.0,0.1402]
[1723315486454,0.005,61219.0,61218.0,0.1392]
[1723315486645,0.005,61219.0,61218.0,0.1402]
[1723315486845,0.01,61219.0,61218.0,0.1402]
[1723315487051,0.01,61219.0,61218.0,0.1392]
[1723315487052,0.005,61219.0,61218.0,0.1392]
[1723315487479,0.01,61219.0,61218.0,0.221875]
[1723315488107,0.01,61219.0,61218.0,0.52091641]
[1723315488320,0.01,61219.0,61218.0,0.51891641]
[1723315488321,0.005,61219.0,61218.0,0.51891641]
[1723315488525,0.00970422,61221.0,61220.0,0.081672]
[1723315488773,0.181665,61226.0,61220.0,0.37296341]
[1723315488971,0.26848092,61225.0,61223.0,0.0801]
[1723315491416,0.27348092,61225.0,61223.0,0.0811]
[1723315491797,0.19181492,61225.0,61223.0,0.0811]
[1723315492196,0.19681492,61225.0,61223.0,0.0821]
[1723315495134,0.27848092,61225.0,61223.0,0.002]
[1723315496134,0.19681492,61225.0,61223.0,0.002]
[1723315500038,0.19681492,61225.0,61224.0,0.0786]
[1723315500843,0.005,61225.0,61224.0,0.51976866]
[1723315501056,0.000832,61229.0,61224.0,0.27476766]
[1723315501255,0.000832,61229.0,61228.0,0.79083]
[1723315501458,0.000832,61229.0,61228.0,0.92649766]
[1723315502220,0.000832,61229.0,61228.0,1.09031258]
[1723315502703,0.000832,61229.0,61228.0,1.25363558]
[1723315503092,0.000832,61229.0,61228.0,1.31199028]
[1723315503616,0.000832,61229.0,61228.0,1.36034498]
[1723315503819,0.000832,61229.0,61228.0,1.34022158]
[1723315504024,0.000832,61229.0,61228.0,1.28763558]
[1723315504241,0.000832,61229.0,61228.0,1.58782407]
[1723315504447,0.000832,61229.0,61228.0,1.28363558]
[1723315504641,0.000832,61229.0,61228.0,1.23169167]
[1723315504853,0.000832,61229.0,61228.0,0.94449766]
[1723315505058,0.000832,61229.0,61228.0,0.93749766]
[1723315505260,0.000832,61229.0,61228.0,0.94949766]
[1723315506510,0.000832,61229.0,61228.0,1.11331258]
[1723315506715,0.000832,61229.0,61228.0,1.12327023]
[1723315507068,0.000832,61229.0,61228.0,1.33488045]
[1723315507270,0.000832,61229.0,61228.0,1.28659014]
[1723315507474,0.000832,61229.0,61228.0,1.3630952]
[1723315507761,0.000832,61229.0,61228.0,1.40659014]
[1723315508866,0.000832,61229.0,61228.0,1.40859014]
[1723315509087,0.000832,61229.0,61228.0,1.57191314]
[1723315509327,0.000831,61245.0,61244.0,0.710583]
[1723315511043,0.000831,61245.0,61244.0,0.87439792]
[1723315511407,0.000831,61245.0,61244.0,0.88039792]
[1723315511592,0.000831,61245.0,61244.0,0.88639792]
[1723315511788,0.000831,61245.0,61244.0,0.722583]
[1723315513595,0.000831,61245.0,61244.0,0.88639792]
[1723315514513,0.000831,61245.0,61244.0,0.722583]
[1723315515877,0.000831,61245.0,61244.0,0.716583]
[1723315516302,0.000831,61245.0,61244.0,0.710583]
[1723315517381,0.000831,61245.0,61244.0,0.714583]
[1723315517705,0.000831,61245.0,61244.0,0.717583]
[1723315519158,0.0101,61269.0,61244.0,0.657083]
[1723315519367,0.244869,61257.0,61256.0,0.01]
[1723315519668,0.43168392,61257.0,61256.0,0.01]
[1723315519873,0.4713,61275.0,61257.0,0.01]
[1723315519874,0.163224,61266.0,61257.0,0.01]
[1723315520084,0.023,61265.0,61259.0,0.01]
[1723315520341,0.023,61265.0,61259.0,0.03]
[1723315520342,0.081614,61264.0,61259.0,0.03]
[1723315520541,0.081614,61264.0,61261.0,0.01]
[1723315520782,0.081615,61263.0,61261.0,0.01]
[1723315521106,0.081614,61264.0,61261.0,0.01]
[1723315521646,0.081615,61263.0,61261.0,0.011]
[1723315521841,0.181615,61263.0,61261.0,0.011]
[1723315522045,0.1,61263.0,61262.0,0.01]
[1723315522246,0.1658,61263.0,61262.0,0.03]
[1723315522448,0.1658,61263.0,61261.0,0.001]
[1723315522449,0.163233,61262.0,61261.0,0.001]
[1723315522689,0.53366392,61262.0,61261.0,0.001]
[1723315522977,0.37043092,61262.0,61261.0,0.002]
[1723315523212,0.36843092,61262.0,61261.0,0.001]
[1723315523417,0.36843092,61262.0,61261.0,0.00406405]
[1723315523726,0.181616,61262.0,61261.0,0.01606405]
[1723315523877,0.1,61262.0,61261.0,0.00506405]
[1723315524281,0.101,61262.0,61261.0,0.00606405]
[1723315524899,0.001,61262.0,61261.0,0.01606405]
[1723315525099,0.001,61262.0,61261.0,0.09768105]
[1723315525254,0.001,61262.0,61261.0,0.01606405]
[1723315525702,0.001,61262.0,61261.0,0.03606405]
[1723315526467,0.001,61262.0,61261.0,0.11691051]
[1723315526675,0.001,61262.0,61261.0,0.09791051]
[1723315526870,0.000832,61264.0,61263.0,0.02]
[1723315527601,0.081616,61262.0,61261.0,0.00606405]
[1723315527807,0.081616,61262.0,61261.0,0.001]
[1723315527962,0.081616,61262.0,61260.0,0.01]
[1723315527963,0.081618,61261.0,61258.0,0.03]
[1723315528190,0.14742,61260.0,61256.0,0.01]
[1723315528400,0.0658,61260.0,61258.0,0.03]
[1723315528638,0.0658,61260.0,61259.0,0.01]
[1723315528838,0.0658,61260.0,61259.0,0.01406405]
[1723315529453,0.1,61262.0,61261.0,0.01]
[1723315529656,0.001832,61264.0,61263.0,0.01]
[1723315529657,0.100832,61264.0,61263.0,0.01]
[1723315529815,0.000832,61264.0,61263.0,0.03]
[1723315530349,0.000832,61264.0,61263.0,0.03406405]
[1723315530751,0.000832,61264.0,61263.0,0.01406405]
[1723315530978,0.000832,61264.0,61263.0,0.01506405]
[1723315531629,0.001832,61264.0,61263.0,0.25587905]
[1723315532033,0.001832,61264.0,61263.0,0.39910905]
[1723315532242,0.001832,61264.0,61263.0,0.23587905]
[1723315532438,0.001832,61264.0,61263.0,0.11006405]
[1723315532903,0.000832,61264.0,61263.0,0.11006405]
[1723315533044,0.000832,61264.0,61263.0,0.10006405]
[1723315533289,0.24725992,61264.0,61263.0,0.00606405]
[1723315533513,0.43348692,61264.0,61263.0,0.00606405]
[1723315533710,0.27025992,61264.0,61263.0,0.00606405]
[1723315534456,0.18864692,61264.0,61263.0,0.00606405]
[1723315535038,0.27025992,61264.0,61263.0,0.00606405]
[1723315535250,0.37025992,61264.0,61263.0,0.00606405]
[1723315536412,0.92314092,61264.0,61263.0,0.00697815]
[1723315537109,0.92314092,61264.0,61263.0,0.00597815]
[1723315537714,0.92314092,61264.0,61247.0,0.11184646]
[1723315537715,0.0612,61252.0,61247.0,0.11184646]
[1723315537828,0.081633,61250.0,61249.0,0.49107874]
[1723315538047,0.0612,61252.0,61247.0,0.09184646]
[1723315538048,0.081631,61251.0,61247.0,0.09184646]
[1723315538251,0.081632,61250.0,61247.0,0.09184646]
[1723315538661,0.224461,61252.0,61247.0,0.09184646]
[1723315538854,0.104631,61251.0,61247.0,0.09184646]
[1723315539271,0.004,61250.0,61247.0,0.09184646]
[1723315539427,0.004,61250.0,61247.0,0.08184646]
[1723315539428,0.085632,61250.0,61247.0,0.08184646]
[1723315539628,0.090632,61250.0,61247.0,0.08184646]
[1723315539860,0.086632,61250.0,61247.0,0.08184646]
[1723315540416,0.081634,61249.0,61247.0,0.08184646]
[1723315540875,0.081634,61249.0,61247.0,0.08284646]
[1723315541080,0.04376864,61251.0,61247.0,0.08284646]
[1723315541081,0.12540064,61251.0,61247.0,0.08284646]
[1723315541321,0.12540064,61251.0,61247.0,0.09284646]
[1723315541488,0.011,61251.0,61250.0,0.1024]
[1723315541695,0.011,61251.0,61250.0,0.184032]
[1723315541922,0.011,61251.0,61250.0,0.174032]
[1723315542119,0.00990215,61255.0,61250.0,0.174032]
[1723315542318,0.00990215,61255.0,61254.0,0.08184646]
[1723315542475,0.181625,61256.0,61254.0,0.08184646]
[1723315542675,0.081625,61255.0,61254.0,0.08184646]
[1723315543547,0.1,61257.0,61256.0,0.0822]
[1723315543753,0.00990062,61257.0,61256.0,0.0922]
[1723315543893,0.00990062,61257.0,61256.0,0.0924]
[1723315544092,0.26324,61260.0,61256.0,0.0924]
[1723315544293,0.26324,61260.0,61257.0,0.01]
[1723315544294,0.081621,61258.0,61257.0,0.01]
[1723315544548,0.1,61258.0,61257.0,0.01]
[1723315544728,0.181621,61258.0,61257.0,0.01]
[1723315544909,0.1,61258.0,61257.0,0.01]
[1723315545310,0.181621,61258.0,61257.0,0.01]
[1723315545509,0.181621,61258.0,61256.0,0.0924]
[1723315545729,0.1,61257.0,61256.0,0.0924]
[1723315545955,0.1,61259.0,61258.0,0.02]
[1723315546131,0.01,61257.0,61256.0,0.1034]
[1723315546353,0.18162,61259.0,61258.0,0.01]
[1723315546535,0.18162,61259.0,61257.0,0.011]
[1723315546536,0.098622,61258.0,61257.0,0.011]
[1723315546731,0.098621,61258.0,61257.0,0.031]
[1723315546963,0.090621,61258.0,61257.0,0.03]
[1723315547161,0.009,61258.0,61257.0,0.03]
[1723315547326,0.09162,61259.0,61257.0,0.03]
[1723315547731,0.09162,61259.0,61258.0,0.399464]
[1723315547732,0.01,61259.0,61258.0,0.399464]
[1723315547946,0.01,61259.0,61258.0,0.53505727]
[1723315548119,0.01,61259.0,61258.0,0.69830027]
[1723315548323,0.01,61259.0,61258.0,0.582707]
[1723315548475,0.01,61259.0,61258.0,0.71829408]
[1723315548984,0.000832,61264.0,61261.0,0.081617]
[1723315549366,0.000832,61264.0,61263.0,0.1124]
[1723315549578,0.000832,61264.0,61263.0,0.256215]
[1723315549794,0.000832,61264.0,61263.0,0.236215]
[1723315550126,0.009832,61264.0,61263.0,0.236215]
[1723315550325,0.000832,61264.0,61263.0,0.236215]
[1723315550550,0.008832,61264.0,61263.0,0.237215]
[1723315550730,0.017832,61264.0,61263.0,0.564675]
[1723315551962,0.017832,61264.0,61263.0,0.584675]
[1723315552296,0.017832,61264.0,61263.0,0.88348267]
[1723315552751,0.017832,61264.0,61263.0,0.69866644]
[1723315552952,0.000832,61264.0,61263.0,0.34438877]
[1723315553153,0.017832,61264.0,61263.0,0.02732377]
[1723315553350,0.017832,61264.0,61263.0,0.002]
[1723315553557,0.031832,61264.0,61263.0,0.011]
[1723315553760,0.000832,61264.0,61263.0,0.116615]
[1723315554485,0.000832,61264.0,61263.0,0.035]
[1723315554654,0.000832,61264.0,61263.0,0.03]
[1723315554865,0.000832,61264.0,61259.0,0.24434]
[1723315554866,0.084132,61264.0,61260.0,0.01]
[1723315555016,0.084132,61264.0,61263.0,0.005]
[1723315555221,0.165747,61264.0,61263.0,0.005]
[1723315555445,0.084132,61264.0,61261.0,0.11184646]
[1723315555856,0.087132,61264.0,61263.0,0.002]
[1723315556217,0.084132,61264.0,61263.0,0.002]
[1723315556647,0.084132,61264.0,61263.0,0.001]
[1723315556840,0.165745,61264.0,61263.0,0.001]
[1723315557042,0.35255992,61264.0,61263.0,0.001]
[1723315557504,0.023832,61264.0,61263.0,0.011]
[1723315557733,0.000832,61264.0,61263.0,0.031]
[1723315557904,0.000832,61264.0,61263.0,0.011]
[1723315558104,0.000832,61264.0,61263.0,0.0868]
[1723315558525,0.000832,61264.0,61263.0,0.0888]
[1723315558714,0.000832,61264.0,61263.0,0.072184]
[1723315559143,0.000832,61264.0,61263.0,0.055735]
[1723315560323,0.000832,61264.0,61263.0,0.13735]
[1723315560923,0.000832,61264.0,61263.0,0.055735]
[1723315561688,0.000832,61264.0,61263.0,0.15735]
[1723315561888,0.000832,61264.0,61263.0,0.32058]
[1723315562036,0.000832,61264.0,61263.0,0.40168]
[1723315562229,0.000832,61264.0,61263.0,0.38168]
[1723315562450,0.000832,61264.0,61263.0,0.21845]
[1723315562802,0.000832,61264.0,61263.0,0.15735]
[1723315563317,0.000832,61264.0,61263.0,0.15281]
[1723315563519,0.000832,61264.0,61263.0,0.51614]
[1723315563718,0.000832,61264.0,61263.0,0.76047]
[1723315564292,0.000832,61264.0,61263.0,0.59724]
[1723315564675,0.000832,61264.0,61263.0,0.022]
[1723315564878,0.32955992,61264.0,61263.0,0.002]
[1723315565080,0.51578692,61264.0,61263.0,0.002]
[1723315565314,0.081617,61261.0,61260.0,0.00746]
[1723315565793,0.08162,61259.0,61258.0,0.00746]
[1723315565975,0.081619,61261.0,61260.0,0.00746]
[1723315566199,0.244854,61261.0,61260.0,0.00746]
[1723315566929,0.081619,61261.0,61260.0,0.00746]
[1723315567132,0.081621,61258.0,61257.0,0.0009141]
[1723315567333,0.104621,61258.0,61257.0,0.0083741]
[1723315567532,0.104621,61258.0,61257.0,0.00578431]
[1723315568123,0.023,61258.0,61257.0,0.00578431]
[1723315568326,0.104621,61259.0,61258.0,0.00578431]
[1723315568532,0.43167692,61259.0,61258.0,0.00578431]
[1723315569119,0.26843592,61259.0,61258.0,0.00578431]
[1723315569843,0.43167692,61259.0,61258.0,0.00578431]
[1723315570676,0.43167692,61259.0,61258.0,0.00678431]
[1723315570677,0.43867692,61259.0,61258.0,0.00678431]
[1723315571600,0.007,61259.0,61258.0,0.00678431]
[1723315571812,0.09362,61259.0,61258.0,0.00678431]
[1723315572016,0.42067592,61259.0,61258.0,0.001]
[1723315572215,0.44367592,61259.0,61258.0,0.001]
[1723315572424,0.77151692,61259.0,61258.0,0.001]
[1723315572618,0.87151692,61259.0,61258.0,0.0019152]
[1723315572762,1.03475792,61259.0,61258.0,0.0019152]
[1723315573160,1.18829292,61259.0,61258.0,0.0019152]
[1723315574277,1.18829292,61259.0,61242.0,0.0815]
[1723315574278,0.244929,61242.0,61239.0,0.00578431]
[1723315574479,0.244929,61242.0,61238.0,0.00578431]
[1723315574480,0.083,61240.0,61238.0,0.00578431]
[1723315574790,0.083,61240.0,61234.0,0.5729252]
[1723315574791,0.081652,61235.0,61234.0,0.5729252]
[1723315574994,0.081652,61235.0,61234.0,0.09763077]
[1723315575134,0.08963575,61235.0,61234.0,0.09763077]
[1723315575338,0.25294075,61235.0,61234.0,0.08184646]
[1723315575924,0.01198375,61235.0,61234.0,0.08184646]
[1723315576128,0.09363575,61235.0,61234.0,0.08184646]
[1723315576411,0.00798375,61235.0,61234.0,0.08184646]
[1723315576747,0.008,61235.0,61234.0,0.08284646]
[1723315576949,0.01594443,61235.0,61234.0,0.08284646]
[1723315577395,0.02494443,61235.0,61234.0,0.24449946]
[1723315577605,0.01594443,61235.0,61234.0,0.24449946]